Cogmind - Beta 16 @@@ ROGUE MODE // 2025.12.15 @ 10:51:27 Player: TheDoorMatt Result: Destroyed by Y-45 Defender with Heavy Assault Rifle Performance ------------- Evolutions (2) 1000 Regions Visited (4) 800 Robots Destroyed (44) 220 Value Destroyed (1176) 1176 Prototype IDs (0) 0 Alien Tech Used (0) 0 Bonus (0) 0 TOTAL SCORE: 3196 Bonus ------- None Cogmind --------- Core Integrity 0/550 Matter 300/300 Energy 100/100 System Corruption 0% Temperature Cool (9) Movement Core (200) Ox3 Location -8/Materials Parts ------- > --- POWER (1) -------- (None) > --- PROPULSION (3) --- (None) > --- UTILITY (5) ------ Medium Storage Unit Visual Processing Unit Improved Signal Interpreter Advanced Targeting Computer > --- WEAPON (2) ------- (None) > --- INVENTORY (10) --- Ion Engine Improved Signal Interpreter Peak State ------------ > --- POWER ------------ Improved Ion Engine > --- PROPULSION ------- Light Treads Light Treads Light Treads > --- UTILITY ---------- Medium Storage Unit Visual Processing Unit Improved Signal Interpreter Advanced Targeting Computer Hardened Medium Armor Plating > --- WEAPON ----------- Minigun Grenade Launcher > --- INVENTORY -------- Ion Engine Ion Engine Light Treads Aluminum Leg Aluminum Leg Improved Signal Interpreter Hardened Medium Armor Plating Assault Rifle Assault Rifle [Rating: 22] Favorites ----------- Power Ion Engine Engine Ion Engine Propulsion Light Treads Treads Light Treads Leg Aluminum Leg Utility Medium Storage Unit Storage Medium Storage Unit Processor Visual Processing Unit Protection Hardened Medium Armor Plating Weapon Grenade Launcher Ballistic Gun Light Assault Rifle Launcher Grenade Launcher Special Weapon Mining Laser Impact Weapon Heavy Mace Slashing Weapon Mining Claw Build | -11 -10 -9 -9 -8 ------- Run | Yrd Mat Mat Min Mat Slots Evolved 4 | . . 2 . 2 Power . | . . . . . Propulsion 1 | . . . . 1 Utility 3 | . . 2 . 1 Weapon . | . . . . . Parts Attached 37 | 6 3 12 3 13 Power 5 | 1 . 2 1 1 Engine 5 | 1 . 2 1 1 Core . | . . . . . Reactor . | . . . . . Propulsion 9 | 2 . 2 . 5 Treads 6 | 2 . 2 . 2 Leg 3 | . . . . 3 Wheel . | . . . . . Hover . | . . . . . Flight . | . . . . . Utility 12 | 1 2 6 . 3 Device . | . . . . . Storage 3 | 1 . 2 . . Processor 6 | . 2 3 . 1 Hackware . | . . . . . Protection 3 | . . 1 . 2 Artifact . | . . . . . Weapon 11 | 2 1 2 2 4 Energy Gun . | . . . . . Energy Cannon . | . . . . . Ballistic Gun 6 | 2 . 1 1 2 Ballistic Cannon . | . . . . . Launcher 2 | . 1 . 1 . Special Weapon 1 | . . . . 1 Impact Weapon 1 | . . . . 1 Slashing Weapon 1 | . . 1 . . Piercing Weapon . | . . . . . Special Melee Weapon . | . . . . . Unidentified Prototypes . | . . . . . Parts Lost 23 | . . 6 . 17 Power 2 | . . . . 2 Propulsion 9 | . . 2 . 7 Utility 3 | . . 1 . 2 Weapon 9 | . . 3 . 6 Highest Loss Streak 4 | . . 2 . 4 To Critical Strikes . | . . . . . Average Backups 7 | 3 7 8 8 6 Power 1 | . 1 . 1 1 Propulsion 2 | 2 2 2 3 1 Utility 1 | . . 1 3 1 Weapon 2 | 1 4 4 1 1 Tool/Special . | . . . . . Unused Backups 4 | . 3 . . 1 Power . | . . . . . Propulsion 2 | . 2 . . . Utility 1 | . . . . 1 Weapon 1 | . 1 . . . Tool/Special . | . . . . . Average Slot Usage (%) 91 | . 98 87 99 80 Engine 10 | . 14 11 11 5 Treads 19 | . 28 17 22 11 Leg 1 | . . . . 5 Storage 11 | . 14 11 11 9 Processor 22 | . 12 24 33 27 Protection 2 | . . 3 . 6 Ballistic Gun 12 | . 20 9 10 7 Launcher 7 | . 7 6 11 4 Peak Build Rating 22 | 6 8 14 14 22 Average Rating 11 | 4 6 11 13 17 On Entrance 8 | . 6 8 12 14 Avg Prop Armor Cover (%) . | . . . . . Naked Turns . | . . . . . Heaviest Build 31 | 12 14 28 20 31 Greatest Support 60 | 40 40 40 40 60 Greatest Overweight (x) 9 | . . 9 . 9 Average Overweight (x) . | . . . . . Largest Inventory Capacity 15 | 8 8 15 10 10 Average Capacity 9 | 6 8 9 10 10 Most Carried 10 | 6 8 10 10 10 Average Carried 7 | 3 7 8 8 6 Final Capacity 10 | 8 8 10 10 10 Final Carried 10 | 6 8 10 10 2 Class Distribution -------------------- 100% | Mutant Dominant Class ---------------- Mutant | -10/Materials Mutant | -9/Materials Mutant | -9/Mines Mutant | -8/Materials Resources | -11 -10 -9 -9 -8 ----------- Run | Yrd Mat Mat Min Mat Matter Collected 1172 | 224 105 138 270 435 Remotely . | . . . . . Salvage Created 1176 | . 281 254 255 386 Parts 75 | . 18 22 16 19 Haulers Intercepted 1 | . . 1 . . Recyclers Shooed 2 | . . . . 2 Parts Field Recycled . | . . . . . Retrieved Matter . | . . . . . Parts Self-Destructed . | . . . . . Prevented . | . . . . . Parts Restored . | . . . . . Kills | -11 -10 -9 -9 -8 ------- Run | Yrd Mat Mat Min Mat Combat Hostiles Destroyed 33 | . 4 8 8 13 Melee 2 | . . 2 . . Guns 10 | . 2 2 1 5 Cannons 1 | . . . . 1 AOE 19 | . 2 4 7 6 Classes Destroyed 10 | . 5 4 1 . Worker 4 | . 1 2 1 . Builder 1 | . 1 . . . Tunneler 1 | . . 1 . . Hauler 1 | . . 1 . . Recycler 2 | . 1 . 1 . Watcher 2 | . 2 . . . Swarmer 8 | . . 1 3 4 Grunt 20 | . 4 5 3 8 Brawler 2 | . . . 2 . Sentry 3 | . . 2 . 1 Best Kill Streak 8 | . 4 7 3 8 Combat Bots Only 8 | . 1 4 3 8 Max Kills in Single Turn 4 | . 4 2 2 3 Gunslinging . | . . . . . Exploded 3 | . 1 2 2 3 Melee 1 | . . 1 . . Uniques/NPCs Destroyed . | . . . . . Combat | -11 -10 -9 -9 -8 -------- Run | Yrd Mat Mat Min Mat Hostile Shots Fired 364 | . 17 118 7 222 Missed 86 | . 2 28 3 53 Hits 278 | . 15 90 4 169 Projectile 278 | . 15 90 4 169 Critical Strikes 9 | . . 2 1 6 Damage Taken 3992 | . 174 1195 94 2529 Core 901 | . 32 274 35 560 Absorbed by Shields . | . . . . . Core Remaining (%) 69 | 100 87 . 22 . Volleys Fired 142 | . 15 33 22 72 Largest 2 | . 2 1 1 2 Hottest 100 | . 40 30 30 100 Shots Fired 159 | . 26 33 22 78 Gun 122 | . 22 22 12 66 Cannon . | . . . . . Launcher 32 | . 4 11 10 7 Special 5 | . . . . 5 Kinetic 122 | . 22 22 12 66 Thermal 5 | . . . . 5 Explosive 32 | . 4 11 10 7 Electromagnetic . | . . . . . Robot Hit Streak 17 | . 4 8 10 17 Robot Miss Streak 4 | . 4 4 1 2 Penetration Max . | . . . . . Secondary Targets . | . . . . . Shots Hit Robots 120 | . 11 29 16 64 Core Hits 80 | . 15 20 15 30 Critical Kills . | . . . . . Critical Parts Destroyed 2 | . 1 . . 1 Critical Strikes 2 | . 1 . . 1 Destroy 1 | . 1 . . . Smash 1 | . . . . 1 Melee Attacks 15 | . . 9 . 6 Impact 6 | . . . . 6 Slashing 9 | . . 9 . . Piercing . | . . . . . Sneak Attacks . | . . . . . Combat Hostiles . | . . . . . Follow-up Attacks . | . . . . . Damage Inflicted 3291 | . 346 1027 579 1339 Guns 1141 | . 80 212 139 710 Cannons . | . . . . . Explosions 1859 | . 266 721 440 432 Melee 203 | . . 94 . 109 Ramming 16 | . . . . 16 Kinetic 1141 | . 80 212 139 710 Thermal 72 | . . . . 72 Explosive 1859 | . 266 721 440 432 Electromagnetic . | . . . . . Impact 109 | . . . . 109 Slashing 94 | . . 94 . . Piercing . | . . . . . Highest Corruption . | . . . . . Average Corruption . | . . . . . Corruption Purged . | . . . . . Corruption Blocked . | . . . . . Overload Shots . | . . . . . Overflow Damage 44 | . . 5 4 35 Projectiles . | . . . . . Explosions 15 | . . 5 4 6 Melee 29 | . . . . 29 Knockbacks 3 | . . . . 3 Impact 2 | . . . . 2 Kinetic . | . . . . . Secondary 1 | . . . . 1 Self-Inflicted Damage 221 | . 7 115 64 35 Shots 12 | . 1 6 3 2 Rammed 12 | . . . . 12 Targets Rammed 13 | . . . . 13 Kicked 1 | . . . . 1 Crushed . | . . . . . Highest Temperature 145 | . 12 10 . 145 Average Temperature 25 | . 8 5 . 35 Received Heat Transfer 1560 | . 90 507 . 963 Siege Activations . | . . . . . Martial Activations . | . . . . . Shielding Activations . | . . . . . Robots Disrupted . | . . . . . Combat Hostiles . | . . . . . Robots Corrupted 1 | . . . . 1 Combat Hostiles 1 | . . . . 1 Parts Fried 2 | . . . . 2 Impact Corruptions 1 | . . . . 1 Robots Melted . | . . . . . Combat Hostiles . | . . . . . Parts Melted . | . . . . . Heat Transferred 150 | . . . . 150 Parts Sabotaged . | . . . . . Parts Stolen . | . . . . . Parts Stripped . | . . . . . Power Chain Reactions . | . . . . . Alert | -11 -10 -9 -9 -8 ------- Run | Yrd Mat Mat Min Mat Maximum Alert Level 1 | . . . . 1 Low Security (%) 96 | 100 100 100 100 85 Level 1 3 | . . . . 14 Level 2 . | . . . . . Level 3 . | . . . . . Level 4 . | . . . . . Level 5 . | . . . . . High Security . | . . . . . Max Security . | . . . . . Peak Influence 233 | . 48 149 176 233 Initial 44 | . . 2 22 44 Average 64 | . 9 59 128 104 Influence Increases 1038 | . 155 259 254 370 Destroy 0b10 Robot/C 660 | . 80 160 160 260 Destroy 0b10 Robot/NC 55 | . 25 20 10 . Destroy Leader 116 | . 14 32 30 40 Disable Machine 60 | . . 15 . 45 Destroy Structure 132 | . 21 32 54 25 Lose Combat Pursuer 15 | . 15 . . . Influence Decreases 1024 | . 148 207 197 472 Entered New Map 114 | . . 5 37 72 Time Decay 680 | . 148 142 160 230 Lost Part 230 | . . 60 . 170 Squads Dispatched 4 | . 1 2 . 1 Investigation . | . . . . . Extermination . | . . . . . Reinforcement 4 | . 1 2 . 1 Assault . | . . . . . Garrison . | . . . . . Intercept . | . . . . . Searches Triggered . | . . . . . Construction Impeded . | . . . . . Haulers Reinforced . | . . . . . Active Scanning Responses . | . . . . . Cargo Convoy Interrupts . | . . . . . Stealth | -11 -10 -9 -9 -8 --------- Run | Yrd Mat Mat Min Mat Distress Signals 6 | . 1 3 . 2 Communications Jammed . | . . . . . Distress Signals . | . . . . . Times Spotted 49 | . 10 15 8 16 Peak Tracking Total 9 | . 2 5 3 9 Tactical Retreats 1 | . 1 . . . Traps | -11 -10 -9 -9 -8 ------- Run | Yrd Mat Mat Min Mat Traps Triggered . | . . . . . Indirectly . | . . . . . Trap Hack Attempts . | . . . . . Triggered . | . . . . . Disarmed . | . . . . . Reprogrammed . | . . . . . Reused . | . . . . . Traps Extracted . | . . . . . Installed . | . . . . . Triggered . | . . . . . Machines | -11 -10 -9 -9 -8 ---------- Run | Yrd Mat Mat Min Mat Machines Disabled 4 | . . 1 . 3 Max in Single Turn 2 | . . 1 . 2 Machines Repaired . | . . . . . Machines Dismantled . | . . . . . Machines Sabotaged . | . . . . . Overloaded Fab Kills . | . . . . . Hacking | -11 -10 -9 -9 -8 --------- Run | Yrd Mat Mat Min Mat Machines Accessed 1 | . . . . 1 Terminals 1 | . . . . 1 Fabricators . | . . . . . Repair Stations . | . . . . . Recycling Units . | . . . . . Scanalyzers . | . . . . . Garrison Access . | . . . . . Total Hacks 3 | . . . . 3 Successful 2 | . . . . 2 Failed 1 | . . . . 1 Catastrophic . | . . . . . Database Lockouts . | . . . . . Manual . | . . . . . Terminals 3 | . . . . 3 Fabricators . | . . . . . Repair Stations . | . . . . . Recycling Units . | . . . . . Scanalyzers . | . . . . . Garrison Access . | . . . . . Terminal Hacks 2 | . . . . 2 Record 2 | . . . . 2 Fabricator Hacks . | . . . . . Repair Station Hacks . | . . . . . Recycling Unit Hacks . | . . . . . Scanalyzer . | . . . . . Garrison Access Hacks . | . . . . . Unauthorized Hacks . | . . . . . Terminals . | . . . . . Fabricators . | . . . . . Repair Stations . | . . . . . Recycling Units . | . . . . . Scanalyzers . | . . . . . Garrison Access . | . . . . . Data Cores Recovered . | . . . . . Used . | . . . . . Hacking Detections 1 | . . . . 1 Full Trace Events . | . . . . . Feedback Events . | . . . . . Feedback Blocked . | . . . . . Robot Schematics Acquired . | . . . . . Robots Built . | . . . . . Authchips . | . . . . . Time . | . . . . . Total Robot Build Rating . | . . . . . Part Schematics Acquired . | . . . . . Parts Built . | . . . . . Authchips . | . . . . . Time . | . . . . . Total Part Build Rating . | . . . . . Part Studies Acquired . | . . . . . Parts Repaired . | . . . . . Time . | . . . . . Parts Recycled . | . . . . . Recycled Matter . | . . . . . Retrieved Matter . | . . . . . Retrieved Components . | . . . . . Parts Scanalyzed . | . . . . . Part Schematics Acquired . | . . . . . Parts Damaged . | . . . . . Bothacking | -11 -10 -9 -9 -8 ------------ Run | Yrd Mat Mat Min Mat Used RIF Installer . | . . . . . Robots Hacked . | . . . . . Non-combat . | . . . . . Combat . | . . . . . Robot Hacks Applied . | . . . . . Relay Couplers Released . | . . . . . Fabnet Peak Effective % . | . . . . . Robots Rewired . | . . . . . Allies Hacked . | . . . . . Hacks Repelled . | . . . . . Allies | -11 -10 -9 -9 -8 -------- Run | Yrd Mat Mat Min Mat Total Allies . | . . . . . Largest Group . | . . . . . Highest-Rated Group . | . . . . . Highest-Rated Ally . | . . . . . Total Orders . | . . . . . Ally Attacks . | . . . . . Total Damage . | . . . . . Kills . | . . . . . Allies Corrupted . | . . . . . Allies Melted . | . . . . . Intel | -11 -10 -9 -9 -8 ------- Run | Yrd Mat Mat Min Mat Active Infowar (turns) 1205 | . . 389 336 480 Optics 1205 | . . 389 336 480 Robot Analysis Total . | . . . . . Derelict Logs Recovered 1 | . . . 1 . Drone Launches . | . . . . . Drone Recoveries . | . . . . . Exploration | -11 -10 -9 -9 -8 ------------- Run | Yrd Mat Mat Min Mat Turns Passed 1994 | 83 613 482 336 480 Spaces Moved 744 | 45 177 198 161 163 Core 11 | 3 . 5 . 3 Treads 686 | 42 177 193 161 113 Legs 47 | . . . . 47 Wheels . | . . . . . Hover . | . . . . . Flight . | . . . . . Fastest Speed 50 | 50 160 160 160 120 Average Speed 164 | 152 160 183 160 156 Slowest Speed 500 | 160 160 500 160 500 Overloaded Moves . | . . . . . Propulsion Burnouts . | . . . . . Robots Hopped . | . . . . . Potential Cave-ins . | . . . . . Cave-ins Triggered . | . . . . . Exploration Rate (%) 25 | 3 38 29 38 20 Regions Visited 4 Branch Regions 1 Pre-discovered Areas 1 | . . . 1 . Known Exits Taken 2 | . . 1 1 . Unknown Exits Taken 2 | 1 1 . . . Scrap Searched 1 | . . . 1 . Spaces Dug 2 | . . . . 2 Terrain Destroyed 172 | . 20 56 71 25 Melee . | . . . . . Projectile 2 | . . . . 2 AOE 170 | . 20 56 71 23 Terrain Rammed . | . . . . . Walls Destroyed . | . . . . . Machines Disabled . | . . . . . Actions | -11 -10 -9 -9 -8 --------- Run | Yrd Mat Mat Min Mat Total 1308 | 57 485 269 217 280 Wait 323 | . 283 5 31 4 Move 740 | 44 176 197 160 163 Hop . | . . . . . Pick Up 19 | 7 5 5 1 1 Fast Attach 18 | 5 1 9 . 3 Attach 16 | 1 . 2 2 11 Detach 1 | . . . . 1 Swap 9 | . 2 2 1 4 Drop 12 | . 3 7 . 2 Fire 142 | . 15 33 22 72 Melee 15 | . . 9 . 6 Ram 8 | . . . . 8 Kick 1 | . . . . 1 Crush 4 | . . . . 4 Escape Stasis . | . . . . . Rewire . | . . . . . Trap . | . . . . . Miscellaneous . | . . . . . Route ------- -11/Scrapyard -10/Materials -9/Materials -9/Mines -8/Materials History --------- Turn | Location | Event 19 | -11/Scrapyard | Discovered new exit (range 15) 84 | -11/Scrapyard | Entered Materials 301 | -10/Materials | Build established: Mutant 663 | -10/Materials | Discovered new exit (range 11) 697 | -10/Materials | Entered another Materials area 697 | -9/Materials | Evolved 2 slots: Utility x2 1135 | -9/Materials | Core integrity fell below 50% 1171 | -9/Materials | Discovered new exit (range 6) 1178 | -9/Materials | Identified exit to Mines 1179 | -9/Materials | Entered Mines 1504 | -9/Mines | Discovered new exit (range 8) 1513 | -9/Mines | Identified exit to Materials 1515 | -9/Mines | Entered Materials 1515 | -8/Materials | Evolved 2 slots: Propulsion x1, Utility x1 1669 | -8/Materials | Destroyed 8 combat bots 1773 | -8/Materials | Lost 3 parts (2n1w) 1826 | -8/Materials | Lost 4 parts (1p1u2w) 1914 | -8/Materials | Core integrity fell below 50% 1941 | -8/Materials | Lost 4 parts (2n1u1w) 1969 | -8/Materials | Core integrity fell below 20% 1995 | -8/Materials | Destroyed by Y-45 Defender with Heavy Assault Rifle Last Messages --------------- 01946_ Mining Laser destroyed. 01946_ Hvy. Mace destroyed. 01948_ R-06 Scavenger collects Lgt. Ion Engine. 01949_ Slammed into R-06 Scavenger. 01950_ Acquired 30 matter. 01951_ Slammed into R-06 Scavenger. 01953_ Penetrated by Slug. 01954_ R-06 Scavenger collects Wheel. 01954_ Acquired 36 matter. 01968_ Ion Engine destroyed. 01973_ Slug penetrates Wall. 01976_ Slammed into H-55 Commando. 01978_ Penetrated by Slug. 01978_ Lgt. Treads destroyed. 01979_ Slammed into H-55 Commando. 01984_ Penetrated by Slug. 01985_ Slammed into H-55 Commando. 01989_ Penetrated by Slug. 01989_ Slammed into H-55 Commando. 01995_ Slug penetrates Wall. Map ----- +----------------------------------------------------+ | ?????????????????????????????????????? | | ?????????????????????????????????????? | | ?????????????????????????????????????? | | ?????????????????????????????????????? | | ?????????????????????????????????????? | | ?????????????????????????????????????? | | ?????????????????????????????????????? | | ?????????????????????????????????????? | | ?????????????????????????????????+???? | | ????????????????????????????????? ???? | | ????????????????????????????????? ???? | | ??????????????###???????????????? ???? | | ??????????????# ?? #???????????? ???? | | ??????????????# ? #???????????? ???? | | ??????????????# """ #???????????? ???? | | ??????????????# """ #???????????? ???? | | ??????????????# """ #########???# #??? | | ???????##?????# """ ## #???# #??? | | ???????# ?????# ## T #???# #??? | | ???????# ????# ## #???# #??? | | ???????# ????# ! ## #???# #??? | | ???????# ????# ## #???# #??? | | ???????#% ???#! ## #???# #??? | | ???????? ???# #####+###???# #??? | | #########+####+####### %%%#???# #??? | | r h@ %##### #??? | | T %% Y #??? | | %#######??? | | ######### #????????? | | "" #???###?### ###????????? | | "" ##### ###?# #??????????? | | "" #### ## ! #?# #??????????? | | ????# ## "" ! #?# #??????????? | | ????####+#### ## "Y ### #??????????? | | ????# #?## ## "" ## #??????????? | | ????# #?##[## ! ## #??????????? | | ????# #?##"## ## #??????????? | | ????# ####%## # # """ #???? | | ????# + " = [ * + #???? | | ????# # [ #???? | | ????# # [ ! ! #???? | | ????# # ########???? | | ????# # " #??????????? | | ????###### #??????????? | | ?????????# #??????????? | | ?????????#### ########## #??????????? | | ????????????# #?#! """ # #??????????? | | ????????????# #?# """ # #??????????? | | ????????????# #?# """ + ??????????? | | ????????????# #?# # ###?????????? | +----------------------------------------------------+ Best States ------------- Heat Dissipation 31 Energy Generation 12 Energy Capacity 265 Matter Stores 300 Matter Capacity 300 Sight Range 18 Terrain Scan Density 85 Armor Coverage 225 Evasion (%) 55 Targeting Accuracy 8 Recoil Reduction 3 Item Schematics ----------------- None Robot Schematics ------------------ None Fabricated ------------ Nothing Repaired ---------- Nothing Studied --------- None Alien Tech Used ----------------- None Achievements -------------- None Challenges ------------ None Game ------ Seed DeliveryMobileRouter Manual? 0 Play Time 00:30:35 Cumulative 38.9 hours Start 2025.12.15 @ 10:21:35 End 2025.12.15 @ 10:51:27 Sessions 1 Manual Loads 0 Difficulty Rogue Special Mode None Game No. 33 Rogue 33 Adventurer 0 Explorer 0 Win Type - Total 0 Types 0/0/0/0/0/0/0/0/0/0 Lore% 16 Gallery% 24 Achievement% 15 Wizard Run 0 Options --------- Layout 1 ASCII 0 Keyboard 0 Movement Mouse Keybinds 0 Fullscreen 1 Font 24/Smallcaps Map View 50x35 Zoom Use 0% Tactical HUD 1 Map Filters NONE Filters NONE Steam 1 RUN: a99fff57-a698-44bc-a071-ae681c31f95d